Workbook

Sheet Beveilig
F1: Welkom bij de BI Maturity Quick scan Bij Zuiderduin.nl
F2: Kies voor macro's inschakelen om de BI Quick Scan te starten.
F14: Vragen: neem contact op met:
F15: info@BijZuiderduin.nl

Sheet Introductie (hidden)
P1: alles ingevuld
C2: Welkom bij de Business Intelligence Quick Scan BijZuiderduin! | P2: =P18 -> FALSE
C4: Deze Quick scan beoogt u inzicht te geven in de BI/Data volwassenheid van uw bedrijf als geheel en enkele deelaspecten. Met dit inzicht kunt u zien of er aspecten zijn waar u beter of minder goed presteert dan gemiddeld.
C5: Als u de vragen op de volgende 7 pagina's beantwoord krijgt u het resultaat te zien. Naar verwachting kost u dat 15-30 minuten.
C7: Wanneer u het resultaat opstuurt, neem ik contact op om het resultaat te bespreken. Ik geef u dan mijn visie of er aspecten zijn die minder of juist extra aandacht nodig hebben en, zo mogelijk ook, waar kansen voor u liggen.
C8: Stuur daartoe het ingevulde document naar:
C9: info@BijZuiderduin.nl
C10: Uw vragen kunt u daar ook kwijt.
C12: Definitie Business Intelligence (BI)
C13: BI, Big Data, Data Science: allemaal begrippen die raakvlakken hebben. Ik gebruik voor BI de Proces definitie van Daan van Beek:
C14: BI is het continue proces waarmee organisaties op gerichte wijze (big) data verzamelen en registreren, combineren, analyseren en de daaruit resulterende (voorspellende) informatie en kennis consequent gebruiken om betere beslissingen te nemen. Dit met als doel de prestaties van de organisatie, teams en medewerkers substantieel te verbeteren.
C16: Alle aangeleverde informatie zal vertrouwelijk worden verwerkt en niet herkenbaar aan derden beschikbaar gesteld worden.
C18: Ik verklaar de werkwijze van deze Quick Scan niet verder te verspreiden maar alleen voor eigen gebruik in te zetten. | P18: FALSE
C19: Versie 1.1: 26-01-2021 © BijZuiderduin
C21: Bronvermelding
C22: Bij de totstandkoming van deze vragenlijst is gebruik gemaakt van de volgende bronnen:
C23: - Verdonck, Klooster en Associates, Datagedreven Quick Scan (https://www.vka.nl/quickscan-datagedreven-werken)
C24: - Alten group, Data Maturity Scan (https://www.alten.nl/data-analytics/data-maturity-scan/)
C25: - JADS MKB Datalab, Datavolwassenheid Quick Scan (https://www.alten.nl/data-analytics/data-maturity-scan/)
C26: - KPMG Data Maturity Assessment (https://data-analytics.insightcenter.nl/#/home)
C27: - Datacratisch werken, Daan van Beek (ISBN 978-90-828091-9-0)
C28: - De intelligente datagedreven organisatie, Daan van Beek (ISBN 978-90-828091-2-1)
C29: - Colleges 'Master of Data Science' van Dick Pouw en Jack Ebbelink
C30: - DAMA-DMBOK Data Management Body of Knowledge (ISBN 978-16-346223-4-9)

Sheet Algemeen (hidden)
D1: Business Intelligence Quick Scan BijZuiderduin | P1: Pagina volledig ingevuld
C2: Algemene bedrijfs- en contactinformatie | E2: Voortgang | F2: =0/7 -> 0 | P2: =AND(P6:P13) -> FALSE
C5: Algemene bedrijfsgegevens
C6: * Datum | P6: =NOT(ISBLANK(D6)) -> FALSE
C7: * Naam organisatie | P7: =NOT(ISBLANK(D7)) -> FALSE
C8: Branche
C9: Afdeling
C10: * Ingevuld door | P10: =NOT(ISBLANK(D10)) -> FALSE
C11: Functie
C12: Telefoonnummer | M12: geen spatie | N12: @ | O12: punt
C13: * Email | M13: =ISERROR(FIND(" ",$D13)) -> TRUE | N13: =NOT(ISERROR(SEARCH("@",$D13,2))) -> FALSE | O13: =NOT(ISERROR(SEARCH(".",$D13,SEARCH("@",$D13)+1))) -> FALSE | P13: =NOT(ISBLANK(D13)) -> FALSE | Q13: =AND(M13,N13,O13) -> FALSE
C14: Omzet
C15: Bedrijfsomvang (#FTE)
C18: Evt speciaal verzoek
C29: * Verplichte gegevens

Sheet BI Organisatie (hidden)
D1: Business Intelligence Quick Scan BijZuiderduin | P1: Pagina volledig ingevuld
C2: BI Organisatie | D2: Voortgang | E2: =1/7 -> 0.1428571429 | P2: =AND(P8,R4) -> FALSE
A3: categorie | C3: vraag | D3: mogelijke antwoorden | L3: Gewicht | M3: note | N3: waarde | O3: waardering | P3: ingevuld | Q3: resultaat | R3: gewogen | S3: regel
R4: =(R5+R16)<>0 -> FALSE
C5: BI Visie | D5: Kies een antwoord uit de pull downlijst die verschijnt als u het veld selecteert. | L5: =SUM(L6:L9) -> 120 | R5: =SUM(R6:R9) -> 0
A6: Basis | C6: Hoe worden BI activiteiten geinitieerd? | L6: 40 | Q6: =VLOOKUP(D6,Antwoorden!A25:B29,2,0) ->  | R6: =IF(ISERROR(Q6),0,L6*Q6) -> 0
A7: Basis | C7: Hoe worden BI ideeën opgepakt? | L7: 40 | Q7: =VLOOKUP(D7,Antwoorden!C25:D29,2,0) ->  | R7: =IF(ISERROR(Q7),0,L7*Q7) -> 0
P8: =OR(P9:P14) -> FALSE
A9: Basis | C9: Wat is geldig voor de BI visie? | D9: We hebben geen BI visie document | L9: 40 | M9: Alleen laten zien als geen Nee bij vorige vraag | N9: 0 | O9: =P9*N9 -> 0 | P9: FALSE | Q9: 5 | R9: =SUM(O9:O14)/SUM(N9:N14)*Q9*L9 -> 0
C10: (meerdere antwoorden mogelijk) | D10: Is afgeleid van de bedrijfsstrategie | N10: 20 | O10: =P10*N10 -> 0 | P10: FALSE
D11: Betreft alle afdelingen | N11: 20 | O11: 0 | P11: FALSE
D12: Is bekend in de organisatie | N12: 30 | O12: 0 | P12: FALSE
D13: Bevat een roadmap voor de middellange termijn | N13: 30 | O13: 0 | P13: FALSE
D14: Verantwoordelijkheid voor BI doelen is eenduidig belegd | N14: 30 | O14: 0 | P14: FALSE
C16: Organisatie | D16: Kies een antwoord uit de pull downlijst die verschijnt als u het veld selecteert. | L16: =SUM(L17:L20) -> 160 | R16: =SUM(R17:R20) -> 0
A17: Basis | C17: Wie is eindverantwoordelijk voor BI? | L17: 40 | Q17: =VLOOKUP(D17,Antwoorden!E25:F34,2,0) ->  | R17: =IF(ISERROR(Q17),0,L17*Q17) -> 0
A18: Basis | C18: Wie maken er gebruik van BI data? | L18: 40 | Q18: =VLOOKUP(D18,Antwoorden!G25:H29,2,0) ->  | R18: =IF(ISERROR(Q18),0,L18*Q18) -> 0
A19: Basis | C19: Hoe zijn BI werkzaamheden georganiseerd? | L19: 40 | Q19: =VLOOKUP(D19,Antwoorden!I25:J30,2,0) ->  | R19: =IF(ISERROR(Q19),0,L19*Q19) -> 0
A20: Basis | C20: Wat is het niveau van BI kennis en cultuur? | L20: 40 | Q20: =VLOOKUP(D20,Antwoorden!K25:L30,2,0) ->  | R20: =IF(ISERROR(Q20),0,L20*Q20) -> 0
C22: Wat is uw ambitie over 1-2 jaar | L22: 1 | Q22: =VLOOKUP(D22,Antwoorden!M25:N29,2,0) ->  | R22: =IF(ISERROR(Q22),0,L22*Q22) -> 0

Sheet BI Expertise (hidden)
E1: Business Intelligence Quick Scan BijZuiderduin | P1: alles ingevuld
C2: BI Expertise | G2: Voortgang | H2: =2/7 -> 0.2857142857 | L2: =SUM(L7:L11) -> 220 | P2: =COUNTIF(P7:P11,0)=0 -> FALSE | R2: =SUM(R7:R11) -> 0
A3: categorie | C3: vraag | E3: mogelijke antwoorden | L3: Gewicht | M3: note | N3: waarde | O3: waardering | P3: ingevuld | Q3: resultaat | R3: gewogen | S3: regel
A6: Basis | C6: Hoe is onderstaande BI expertise in het bedrijf beschikbaar? | E6: Niet beschikbaar | F6: Beperkt beschikbaar | G6: Beschikbaar maar beperkt gebruikt | H6: Goed beschikbaar en gebruikt | I6: Onbekend | L6: =SUM(L7:L11) -> 220 | R6: =SUM(R7:R11) -> 0
A7: Basis | C7: BI Data ontsluiting en integratie | L7: 40 | P7: 0 | Q7: =VLOOKUP(P7,$N$18:$O$22,2,0) ->  | R7: =IF(ISERROR(Q7),0,Q7*L7) -> 0
A8: Basis | C8: Rapportage en visualisatie | L8: 30 | P8: 0 | Q8: =VLOOKUP(P8,$N$18:$O$22,2,0) ->  | R8: =IF(ISERROR(Q8),0,Q8*L8) -> 0 | S8: als score vraag 1<3 dan vreemd als hier vraag 2>3
A9: Basis | C9: Combinatie BI en Bedrijfsproces kennis | L9: 40 | P9: 0 | R9: 0
A10: Basis | C10: Data Science | L10: 60 | P10: 0 | R10: 0 | S10: als score vraag 1<4 dan vreemd als hier vraag 4>2
A11: Basis | C11: Ad hoc data analyse | L11: 50 | P11: 0 | R11: 0 | S11: als score vraag 1<3 dan vreemd als hier vraag 5>3
N18: 1 | O18: 1
N19: 2 | O19: 2
N20: 3 | O20: 3.5
N21: 4 | O21: 5
N22: 5 | O22: 1

Sheet BI Data-IT (hidden)
D1: Business Intelligence Quick Scan BijZuiderduin | P1: Pagina volledig ingevuld
C2: BI Data-IT | D2: Voortgang | E2: =3/7 -> 0.4285714286 | P2: =P4=0 -> FALSE
A3: categorie | C3: vraag | D3: mogelijke antwoorden | L3: Gewicht | M3: note | N3: waarde | O3: waardering | P3: ingevuld | Q3: resultaat | R3: gewogen | S3: regel
P4: =COUNTBLANK(D6:D9)+ COUNTBLANK(D12:D14)+COUNTBLANK(D17:D20) -> 11
C5: BI data | D5: Kies een antwoord uit de pull downlijst die verschijnt als u het veld selecteert. | L5: =SUM(L6:L9) -> 135 | R5: =SUM(R6:R9) -> 0
A6: Basis | C6: Hoe wordt data voor BI gebruik ontsloten? | L6: 60 | Q6: =VLOOKUP(D6,Antwoorden!$A$4:$B$10,2,0) ->  | R6: =IF(ISERROR(Q6),0,L6*Q6) -> 0
A7: Basis | C7: Hoeveel historie is in de BI data beschikbaar? | L7: 25 | Q7: =VLOOKUP(D7,Antwoorden!$C$4:$D$8,2,0) ->  | R7: =IF(ISERROR(Q7),0,MIN($R$6,L7*Q7)) -> 0 | S7: maximaal de score op vraag 1
A8: Basis | C8: Hoe vaak wordt de BI data bijgewerkt? | L8: 25 | Q8: =VLOOKUP(D8,Antwoorden!$E$4:$F$8,2,0) ->  | R8: =IF(ISERROR(Q8),0,MIN($R$6,L8*Q8)) -> 0 | S8: maximaal de score op vraag 1
A9: Basis | C9: Wat is het detailniveau van de BI data? | L9: 25 | Q9: =VLOOKUP(D9,Antwoorden!$G$4:$H$8,2,0) ->  | R9: 0 | S9: maximaal de score op vraag 1
C11: BI data bronnen | L11: =SUM(L12:L14) -> 80 | R11: =SUM(R12:R14) -> 0
A12: Basis | C12: Uit hoeveel bedrijfsbronnen is data beschikbaar? | L12: 25 | Q12: =VLOOKUP(D12,Antwoorden!$I$4:$J$8,2,0) ->  | R12: 0
A13: Basis | C13: Hoe wordt data uit externe databronnen ontsloten? | L13: 25 | Q13: =VLOOKUP(D13,Antwoorden!$K$4:$L$8,2,0) ->  | R13: 0
A14: Basis | C14: Hoe snel kan een verzoek, om gecombineerde data uit meerdere basis systemen te leveren, worden gerealiseerd? | L14: 30 | Q14: =VLOOKUP(D14,Antwoorden!$M$4:$N$8,2,0) ->  | R14: =IF(ISERROR(Q14),0,MIN($R$6,L14*Q14)) -> 0 | S14: maximaal de score op vraag 1
S15: score 'Volledige historie' op vraag 'Hoeveel historie': let op AVG!
C16: BI data Beheer | L16: =SUM(L17:L20) -> 95 | R16: =SUM(R17:R20) -> 0
A17: Basis | C17: Hoe vaak zijn er incidenten in de verwerking? | L17: 20 | Q17: =VLOOKUP(D17,Antwoorden!$O$4:$P$8,2,0) ->  | R17: =IF(ISERROR(Q17),0,MIN($R$6,L17*Q17)) -> 0 | S17: maximaal de score op vraag 1
A18: Basis | C18: Hoe snel kunnen wijzigingen in de datastromen verwerkt worden? | L18: 20 | Q18: =VLOOKUP(D18,Antwoorden!$Q$4:$R$8,2,0) ->  | R18: =IF(ISERROR(Q18),0,MIN($R$6,L18*Q18)) -> 0 | S18: maximaal de score op vraag 1
A19: Basis | C19: Hoe snel kunnen BI analyse resultaten in de praktijk worden toegepast (bv. bij klantcontacten)? | L19: 30 | Q19: =VLOOKUP(D19,Antwoorden!$U$4:$V$8,2,0) ->  | R19: 0
A20: Basis | C20: Voldoet de huidige informatievoorziening? | L20: 25 | Q20: =VLOOKUP(D20,Antwoorden!$S$4:$T$8,2,0) ->  | R20: 0

Sheet BI Data Governance (hidden)
D1: Business Intelligence Quick Scan BijZuiderduin | L1: Totaal gewicht | P1: Pagina volledig ingevuld | R1: Totaal gewogen
C2: BI Data Governance | H2: Voortgang | I2: =4/7 -> 0.5714285714 | L2: =SUM(L4:L17) -> 380 | P2: =COUNTIF(P6:P16,0)=0 -> FALSE | R2: =SUM(R4:R17) -> 0
A3: categorie | C3: vraag | D3: mogelijke antwoorden | L3: Gewicht | M3: note | N3: waarde | O3: waardering | P3: ingevuld | Q3: resultaat | R3: gewogen | S3: regel
C5: Data Governance implementatie | D5: Geen aandacht | E5: Beperkt geïmplementeerd | F5: Belegd in de organisatie | G5: Regelmatig gereviewed | H5: KPI's worden gerapporteerd | I5: Onbekend | L5: =SUM(L6:L16) -> 190 | R5: =SUM(R6:R16) -> 0
C6: Data Governance (algemeen) | L6: 20 | P6: 0 | Q6: =VLOOKUP(P6,$N$19:$O$24,2,0) ->  | R6: =IF(ISERROR(Q6),0,Q6*L6) -> 0
C7: Data architectuur | L7: 15 | P7: 0 | R7: =IF(ISERROR(Q7),0,Q7*L7) -> 0
C8: Meta Data Beheer | L8: 20 | P8: 0 | R8: 0
C9: Data Quality | L9: 20 | P9: 0 | R9: 0
C10: Data opslag en Operationeel Beheer | L10: 10 | P10: 0 | R10: 0
C11: Data Beveiliging | L11: 25 | P11: 0 | R11: 0
C12: Data gebruik ethiek | L12: 25 | P12: 0 | R12: 0
C13: Master Data Management | L13: 15 | P13: 0 | R13: 0
C14: BI Data modeleren en ontwerp | L14: 15 | P14: 0 | R14: 0
C15: Data Warehouse & BI | L15: 10 | P15: 0 | R15: 0
C16: Document & Content Management | L16: 15 | P16: 0 | R16: 0
N19: 1 | O19: 1
N20: 2 | O20: 2
N21: 3 | O21: 3
N22: 4 | O22: 4
N23: 5 | O23: 5
N24: 6 | O24: 1

Sheet BI Gebruik (hidden)
D1: Business Intelligence Quick Scan BijZuiderduin | P1: Pagina volledig ingevuld
C2: BI Gebruik | D2: Voortgang | E2: =5/7 -> 0.7142857143 | P2: =P4=0 -> FALSE
A3: categorie | C3: vraag | D3: mogelijke antwoorden | L3: Gewicht | M3: note | N3: waarde | O3: waardering | P3: ingevuld | Q3: resultaat | R3: gewogen | S3: regel
L4: =SUM(L6:L12) -> 70 | P4: =COUNTBLANK(D6:D9) -> 4 | R4: =SUM(R6:R12) -> 0
C5: Hoe wordt BI data in uw organisatie gebruikt? | D5: Kies een antwoord uit de pull downlijst die verschijnt als u het veld selecteert.
C6: Hoe kunnen eindgebruikers informatie uit gecombineerde bronnen benaderen? | L6: 10 | Q6: =VLOOKUP(D6,Antwoorden!A16:B20,2,0) ->  | R6: =IF(ISERROR(Q6),0,L6*Q6) -> 0
C7: Rapporteert de organisatie over BI KPI's? | L7: 20 | Q7: =VLOOKUP(D7,Antwoorden!C16:D20,2,0) ->  | R7: =IF(ISERROR(Q7),0,L7*Q7) -> 0
C8: Hoe wordt BI data gezien? | L8: 20 | Q8: =VLOOKUP(D8,Antwoorden!E16:F20,2,0) ->  | R8: 0
C9: Wat wordt er met BI analyse resultaten gedaan? | L9: 20 | Q9: =VLOOKUP(D9,Antwoorden!G16:H20,2,0) ->  | R9: 0

Sheet BI Resultaten (hidden)
D1: Business Intelligence Quick Scan BijZuiderduin | P1: Pagina volledig ingevuld
C2: BI Resultaten | G2: Voortgang | H2: =6/7 -> 0.8571428571 | P2: =COUNTIF(P6:P28,0)=0 -> FALSE
A3: categorie | C3: vraag | D3: mogelijke antwoorden | L3: Gewicht | M3: note | N3: waarde | O3: waardering | P3: ingevuld | Q3: resultaat | R3: gewogen | S3: regel
C5: Voor welke doeleinden wordt BI ingezet | D5: Niet | E5: Zeer beperkt | F5: Matig | G5: Uitgebreid | H5: Onbekend/nvt | L5: =SUM(L6:L12) -> 140 | R5: =SUM(R6:R12) -> 0
C6: Verantwoordings rapportages | L6: 20 | P6: 0 | Q6: =VLOOKUP(P6,$N$21:$O$26,2,0) ->  | R6: =IF(ISERROR(Q6),0,Q6*L6) -> 0
C7: Verbeteren besluitvorming | L7: 20 | P7: 0 | R7: =IF(ISERROR(Q7),0,Q7*L7) -> 0
C8: Verhogen inkomsten/omzet | L8: 20 | P8: 0 | R8: =IF(ISERROR(Q8),0,Q8*L8) -> 0
C9: Verhogen klanttevredenheid | L9: 20 | P9: 0 | R9: =IF(ISERROR(Q9),0,Q9*L9) -> 0
C10: Voldoen aan regelgeving | H10: * | L10: =IF(P10=5,0,M10) -> 20 | M10: 20 | P10: 0 | R10: 0
C11: Kostenverlaging door proces optimalisatie/automatisering | L11: 20 | P11: 0 | R11: 0
C12: Verbeteren Risk Management / Internal Audit | H12: * | L12: =IF(P12=5,0,M12) -> 20 | M12: 20 | P12: 0 | R12: 0
H13: * Als hier 'Onbekend/nvt' wordt ingevuld wordt de score niet meegerekend
C14: Welke BI technieken worden toegepast | D14: Niet | E14: Pilots | F14: Bij 1 afdeling | G14: Over meerdere afdelingen | H14: Onbekend/nvt | L14: =SUM(L15:L19) -> 160 | R14: =SUM(R15:R19) -> 0
A15: Basis | C15: Reporting en Data visualisatie | L15: 30 | P15: 0 | Q15: =VLOOKUP(P15,$N$21:$O$26,2,0) ->  | R15: =IF(ISERROR(Q15),0,Q15*L15) -> 0
A16: Basis | C16: Intelligent Automation | H16: * | L16: =IF(P16=5,0,M16) -> 30 | M16: 30 | P16: 0 | Q16: =VLOOKUP(P16,$N$21:$O$26,2,0) ->  | R16: =IF(ISERROR(Q16),0,Q16*L16) -> 0 | S16: als nvt dan gewicht 0
A17: Basis | C17: Artificial Intelligence / Machine Learning | H17: * | L17: 40 | M17: 40 | P17: 0 | Q17: =VLOOKUP(P17,$N$21:$O$26,2,0) ->  | R17: =IF(ISERROR(Q17),0,Q17*L17) -> 0 | S17: als nvt dan gewicht 0
A18: Basis | C18: Virtuele agents of gesproken interfaces | H18: * | L18: 30 | M18: 30 | P18: 0 | Q18: =VLOOKUP(P18,$N$21:$O$26,2,0) ->  | R18: 0 | S18: als nvt dan gewicht 0
A19: Basis | C19: Natuurlijke taal en/of spraak herkenning | H19: * | L19: 30 | M19: 30 | P19: 0 | Q19: =VLOOKUP(P19,$N$21:$O$26,2,0) ->  | R19: 0 | S19: als nvt dan gewicht 0
H20: * Als hier 'Onbekend/nvt' wordt ingevuld wordt de score niet meegerekend
C21: Wat was de impact van BI op de verschillende afdelingen binnen uw bedrijf? (Denk aan kosten besparingen, toegenomen inkomsten, betere beslissingen.) | D21: Geen impact | E21: Beperkte impact | F21: Hoge impact | G21: Bedrijfs-veranderend | H21: Onbekend/nvt | L21: =SUM(L22:L28) -> 130 | N21: 1 | O21: 1 | R21: =SUM(R22:R28) -> 0
A22: Basis | C22: Hele bedrijf | L22: 20 | N22: 2 | O22: 2 | P22: 0 | Q22: =VLOOKUP(P22,$N$21:$O$26,2,0) ->  | R22: =IF(ISERROR(Q22),0,Q22*L22) -> 0
A23: Basis | C23: HR | L23: 10 | N23: 3 | O23: 3.5 | P23: 0 | Q23: =VLOOKUP(P23,$N$21:$O$26,2,0) ->  | R23: 0
A24: Basis | C24: IT/ Techniek | L24: 20 | N24: 4 | O24: 5 | P24: 0 | R24: 0
A25: Basis | C25: Marketing, Sales en Relatiebeheer | H25: * | L25: =IF(P25=5,0,M25) -> 20 | M25: 20 | N25: 5 | O25: 1 | P25: 0 | R25: 0
A26: Basis | C26: Risk en interne auditing | H26: * | L26: 10 | M26: 10 | P26: 0 | R26: 0
A27: Basis | C27: Finance | L27: 20 | P27: 0 | R27: 0
A28: Basis | C28: Inkoop, Productie en Procesverbetering | L28: 30 | P28: 0 | R28: 0
H29: * Als hier 'Onbekend/nvt' wordt ingevuld wordt de score niet meegerekend

Sheet BI Maturity (hidden)
D1: Business Intelligence Quick Scan BijZuiderduin
C2: BI Maturity
Q5: score | R5: gewicht | S5: Deelscore | T5: min | U5: max | V5: totale | W5: Ambitie
O6: totale | Q6: =SUM(Q7:Q9) -> 0 | R6: =SUM(R7:R9) -> 1500 | S6: =Q6/R6 -> 0 | V6: =$S$6 -> 0 | W6: =$S$10 -> 0
C7: Voorspellen | O7: Organisatie | Q7: =SUM(Q12:Q14) -> 0 | R7: =SUM(R12:R14) -> 500 | S7: =Q7/R7 -> 0 | T7: =MIN(S12:S14) -> 0 | U7: =MAX(S12:S14)-T7 -> 0 | V7: =$S$6 -> 0 | W7: =$S$10 -> 0 | X7: Organisatie
O8: Data en IT | Q8: =SUM(Q15:Q18) -> 0 | R8: =SUM(R15:R18) -> 500 | S8: =Q8/R8 -> 0 | T8: =MIN(S15:S18) -> 0 | U8: =MAX(S15:S18)-T8 -> 0 | V8: =$S$6 -> 0 | W8: =$S$10 -> 0 | X8: Data en IT
C9: Analyseren | O9: Toepassing | Q9: =SUM(Q19:Q23) -> 0 | R9: =SUM(R19:R23) -> 500 | S9: =Q9/R9 -> 0 | T9: =MIN(S19:S23) -> 0 | U9: =MAX(S19:S23)-T9 -> 0 | V9: 0 | W9: 0 | X9: Toepassing
O10: Ambitie | S10: ='BI Organisatie'!R22 -> 0
C11: Sturing
O12: Organisatie | P12: Visie | Q12: ='BI Organisatie'!R5 -> 0 | R12: ='BI Organisatie'!L5 -> 120 | S12: =Q12/R12 -> 0
C13: Rapportage | O13: Organisatie | P13: Organisatie | Q13: ='BI Organisatie'!R16 -> 0 | R13: ='BI Organisatie'!L16 -> 160 | S13: =Q13/R13 -> 0
O14: Organisatie | P14: Expertise | Q14: ='BI Expertise'!R6 -> 0 | R14: ='BI Expertise'!L6 -> 220 | S14: =Q14/R14 -> 0
C15: Basis | O15: Data en IT | P15: BI Data | Q15: ='BI Data-IT'!R5 -> 0 | R15: ='BI Data-IT'!L5 -> 135 | S15: =Q15/R15 -> 0
O16: Data en IT | P16: BI bronnen | Q16: ='BI Data-IT'!R11 -> 0 | R16: ='BI Data-IT'!L11 -> 80 | S16: =Q16/R16 -> 0
O17: Data en IT | P17: BI data beheer | Q17: ='BI Data-IT'!R16 -> 0 | R17: ='BI Data-IT'!L16 -> 95 | S17: =Q17/R17 -> 0
O18: Data en IT | P18: Governance | Q18: ='BI Data Governance'!R5 -> 0 | R18: ='BI Data Governance'!L5 -> 190 | S18: 0
O19: Toepassing | P19: BI gebruik | Q19: ='BI Gebruik'!R4 -> 0 | R19: ='BI Gebruik'!L4 -> 70 | S19: =Q19/R19 -> 0
O20: Toepassing | P20: Doeleinden | Q20: ='BI Resultaten'!R5 -> 0 | R20: ='BI Resultaten'!L5 -> 140 | S20: 0
D21: Gefeliciteerd, u heeft voor uw organisatie de BI/Big data Maturity score bepaald. Onderstaand krijgt u een toelichting hierop. | O21: Toepassing | P21: Resultaten | Q21: ='BI Resultaten'!R14 -> 0 | R21: ='BI Resultaten'!L14 -> 160 | S21: 0
V22: Om uw ambitie te realiseren is eerst aandacht nodig voor
D23: =CONCATENATE("Het Overal BI/Big data volwassenheidsniveau van uw organisatie heeft een score van ",TEXT(S6,"#,0"),", dat ",VLOOKUP(S6,Antwoorden!$B$59:$C$67,2,1),".") -> Het Overal BI/Big data volwassenheidsniveau van uw organisatie heeft een score van ,0, dat noemen we niveau Basis. | O23: Toepassing | P23: Impact | Q23: ='BI Resultaten'!R21 -> 0 | R23: ='BI Resultaten'!L21 -> 130 | S23: 0 | V23: , dan voor
D24: =CONCATENATE("- Het BI Organisatie aspect heeft een score van ",TEXT(S7,"#,0")," en ",VLOOKUP(S7,Antwoorden!$B$59:$C$67,2,1),". ") -> - Het BI Organisatie aspect heeft een score van ,0 en noemen we niveau Basis. | V24: en als laatste pas voor
D25: =CONCATENATE("- Het BI Data en IT aspect heeft een score van ",TEXT(S8,"#,0")," en ",VLOOKUP(S8,Antwoorden!$B$59:$C$67,2,1),".") -> - Het BI Data en IT aspect heeft een score van ,0 en noemen we niveau Basis.
D26: =CONCATENATE("- De Toepassing van BI Organisatie in uw organisatie heeft een score van ",TEXT(S9,"#,0")," en ",VLOOKUP(S9,Antwoorden!$B$59:$C$67,2,1),".") -> - De Toepassing van BI Organisatie in uw organisatie heeft een score van ,0 en noemen we niveau Basis. | O26: Versciil met totale | P26: organisatie | Q26: =S7-V7 -> 0 | R26: Organisatorische aspecten | U26: -9 | V26: veel lager dan de totale score. Dat betekent dat u eerst aandacht moet besteden aan de | W26: om de BI vaardigheden in balans te krijgen.
D27: =CONCATENATE("Het grootste verschil tussen de deelscores is ",TEXT(Q33,"0,0"),".",VLOOKUP(Q33,$U$33:$V$35,2,1)) -> Het grootste verschil tussen de deelscores is 0,0. Dit wijst op een evenwichtige uitrol van BI. Een verdere ontwikkeling van BI kan over de hele linie plaatsvinden. | P27: data en IT | Q27: =S8-V8 -> 0 | R27: Data en IT aspecten | U27: -1.5 | V27: lager dan de totale score. Dat betekent dat er bij de volgende stappen meer aandacht nodig is voor | W27: dan voor de andere aspecten.
P28: Toepassing | Q28: 0 | R28: Toepassingen | U28: -0.5 | V28: in de buurt van de totale score. De aandacht voor dit aspect is daarmee in balans.
D29: =CONCATENATE("Het verschil tussen uw huidige situatie en uw ambitie is ",TEXT(S10-S6,"0,0")," wat ",VLOOKUP(S10-S6,Antwoorden!D59:E62,2,1),".") -> Het verschil tussen uw huidige situatie en uw ambitie is 0,0 wat weinig ambitieus te noemen is. Neem eens de tijd om na te denken welke mogelijkheden er zijn. | U29: 0.5 | V29: hoger dan de totale score. Dat betekent dat | W29: andere aspecten de nadruk moeten krijgen bij het ontwikkelen van de BI vaardigheden.
D30: =CONCATENATE(V22,Q32,V23,Q30,V24,Q31,".") -> Om uw ambitie te realiseren is eerst aandacht nodig voor Organisatie, dan voor Toepassing en als laatste pas voor Organisatie. | P30: midden | Q30: =VLOOKUP(MIN($S$7:$S$9)+0.00001,$S$7:$X$9,6,1) -> Toepassing | U30: 1.5 | V30: veel hoger dan de totale score. Dat betekent dat u eerst aandacht moet besteden aan de ontwikkeling van de andere BI aspecten.
D31: =IF(Q33>=U34,CONCATENATE(R30,R31,R30,R32),"") ->  | P31: hoogste | Q31: =VLOOKUP(MAX($S$7:$S$9),$S$7:$X$9,6,0) -> Organisatie | R31: =CONCATENATE("De hoogste deelscore is voor het aspect ",Q31,". Met een verschil van ",TEXT(VLOOKUP(Q31,$P$26:$Q$28,2,0),"0,0")," is dat ",VLOOKUP(VLOOKUP(Q31,$P$26:$Q$28,2,0),$U$26:$W$30,2,1),VLOOKUP(VLOOKUP(Q31,$P$26:$Q$28,2,0),$U$26:$W$30,3,1)) -> De hoogste deelscore is voor het aspect Organisatie. Met een verschil van 0,0 is dat in de buurt van de totale score. De aandacht voor dit aspect is daarmee in balans.
P32: laagste | Q32: =VLOOKUP(MIN($S$7:$S$9),$S$7:$X$9,6,0) -> Organisatie | R32: =CONCATENATE("De laagste deelscore is voor het aspect ",Q32,". Met een verschil van ",TEXT(ABS(VLOOKUP(Q32,$P$26:$Q$28,2,0)),"0,0")," is dat ",VLOOKUP(VLOOKUP(Q32,$P$26:$Q$28,2,0),$U$26:$W$30,2,1),VLOOKUP(Q32,$P$26:$R$28,3,0),VLOOKUP(VLOOKUP(Q32,$P$26:$Q$28,2,0),$U$26:$W$30,3,1)) -> De laagste deelscore is voor het aspect Organisatie. Met een verschil van 0,0 is dat in de buurt van de totale score. De aandacht voor dit aspect is daarmee in balans. Organisatorische aspecten
D33: Als u dit document opslaat en opstuurt naar Bij Zuiderduin (info@BijZuiderduin.nl), dan neem ik geheel vrijblijvend contact met u op om het resultaat te bespreken. Daarin kunnen bijvoorbeeld detailscores worden bekeken om uitschieters te vinden. Een mogelijk vervolg op deze eerste stap is het formulier in te laten vullen door meer collega's om de BI perceptie uit een bredere vertegenwoordiging inzichtelijk te maken. Met die kennis is het mogelijk om een gerichte aanpak vast te stellen om de BI ambitie te realiseren. | P33: grootste verschil | Q33: =MAX(Q26:Q28)-MIN(Q26:Q28) -> 0 | U33: 0 | V33: Dit wijst op een evenwichtige uitrol van BI. Een verdere ontwikkeling van BI kan over de hele linie plaatsvinden.
U34: 1 | V34: Dit wijst op een kleine onbalans in de BI maturity en vraagt om wat extra aandacht bij achtergebleven aspecten.
U35: 2 | V35: Dit wijst op een forse onbalans in de BI maturity. De achterstand moet weggewerkt worden voordat er op een zinvolle manier gewerkt kan worden aan het verder ontwikkelen van de BI vaardigheden.
P37: Attentie
O38: AVG warning | P38: =IF('BI Data-IT'!R7=MAX(Antwoorden!D4:D9),"Let op: de data voor de AVG moet na eenbepaalde termijn geschoond worden!)","") -> 

Sheet scores (hidden)
A1: Naam organisatie | B1: Ingevuld door | C1: Aspect | D1: Deelaspect | E1: vraag | F1: gewicht | G1: score | H1: ambitie
A2: =Algemeen!$D$7 -> 0 | B2: =Algemeen!$D$10 -> 0 | C2: ='BI Organisatie'!$C$2 -> BI Organisatie | D2: ='BI Organisatie'!$C$5 -> BI Visie | E2: ='BI Organisatie'!C6 -> Hoe worden BI activiteiten geinitieerd? | F2: ='BI Organisatie'!L6 -> 40 | G2: ='BI Organisatie'!R6 -> 0 | H2: =$G$9 -> 0
A3: =Algemeen!$D$7 -> 0 | B3: =Algemeen!$D$10 -> 0 | C3: ='BI Organisatie'!$C$2 -> BI Organisatie | D3: ='BI Organisatie'!$C$5 -> BI Visie | E3: ='BI Organisatie'!C7 -> Hoe worden BI ideeën opgepakt? | F3: ='BI Organisatie'!L7 -> 40 | G3: ='BI Organisatie'!R7 -> 0 | H3: 0
A4: =Algemeen!$D$7 -> 0 | B4: =Algemeen!$D$10 -> 0 | C4: ='BI Organisatie'!$C$2 -> BI Organisatie | D4: ='BI Organisatie'!$C$5 -> BI Visie | E4: ='BI Organisatie'!C9 -> Wat is geldig voor de BI visie? | F4: ='BI Organisatie'!L9 -> 40 | G4: ='BI Organisatie'!R9 -> 0 | H4: 0
A5: =Algemeen!$D$7 -> 0 | B5: =Algemeen!$D$10 -> 0 | C5: ='BI Organisatie'!$C$2 -> BI Organisatie | D5: ='BI Organisatie'!$C$16 -> Organisatie | E5: ='BI Organisatie'!C17 -> Wie is eindverantwoordelijk voor BI? | F5: ='BI Organisatie'!L17 -> 40 | G5: ='BI Organisatie'!R17 -> 0 | H5: 0
A6: =Algemeen!$D$7 -> 0 | B6: =Algemeen!$D$10 -> 0 | C6: ='BI Organisatie'!$C$2 -> BI Organisatie | D6: ='BI Organisatie'!$C$16 -> Organisatie | E6: ='BI Organisatie'!C18 -> Wie maken er gebruik van BI data? | F6: ='BI Organisatie'!L18 -> 40 | G6: ='BI Organisatie'!R18 -> 0 | H6: 0
A7: =Algemeen!$D$7 -> 0 | B7: =Algemeen!$D$10 -> 0 | C7: ='BI Organisatie'!$C$2 -> BI Organisatie | D7: ='BI Organisatie'!$C$16 -> Organisatie | E7: ='BI Organisatie'!C19 -> Hoe zijn BI werkzaamheden georganiseerd? | F7: ='BI Organisatie'!L19 -> 40 | G7: ='BI Organisatie'!R19 -> 0 | H7: 0
A8: =Algemeen!$D$7 -> 0 | B8: =Algemeen!$D$10 -> 0 | C8: ='BI Organisatie'!$C$2 -> BI Organisatie | D8: ='BI Organisatie'!$C$16 -> Organisatie | E8: ='BI Organisatie'!C20 -> Wat is het niveau van BI kennis en cultuur? | F8: ='BI Organisatie'!L20 -> 40 | G8: ='BI Organisatie'!R20 -> 0 | H8: 0
A9: =Algemeen!$D$7 -> 0 | B9: =Algemeen!$D$10 -> 0 | C9: Ambitie | D9: Ambitie | E9: ='BI Organisatie'!C22 -> Wat is uw ambitie over 1-2 jaar | F9: 0 | G9: ='BI Organisatie'!R22 -> 0 | H9: 0
A10: =Algemeen!$D$7 -> 0 | B10: =Algemeen!$D$10 -> 0 | C10: ='BI Organisatie'!$C$2 -> BI Organisatie | D10: BI Expertise | E10: BI Data integratie en ontsluiting | F10: ='BI Expertise'!L7 -> 40 | G10: ='BI Expertise'!R7 -> 0 | H10: 0
A11: =Algemeen!$D$7 -> 0 | B11: =Algemeen!$D$10 -> 0 | C11: ='BI Organisatie'!$C$2 -> BI Organisatie | D11: BI Expertise | E11: Rapportage en visualisatie | F11: ='BI Expertise'!L8 -> 30 | G11: ='BI Expertise'!R8 -> 0 | H11: 0
A12: =Algemeen!$D$7 -> 0 | B12: =Algemeen!$D$10 -> 0 | C12: ='BI Organisatie'!$C$2 -> BI Organisatie | D12: BI Expertise | E12: Combinatie BI en Bedrijfsproces kennis | F12: ='BI Expertise'!L9 -> 40 | G12: ='BI Expertise'!R9 -> 0 | H12: 0
A13: =Algemeen!$D$7 -> 0 | B13: =Algemeen!$D$10 -> 0 | C13: ='BI Organisatie'!$C$2 -> BI Organisatie | D13: BI Expertise | E13: Data Science | F13: ='BI Expertise'!L10 -> 60 | G13: ='BI Expertise'!R10 -> 0 | H13: 0
A14: =Algemeen!$D$7 -> 0 | B14: =Algemeen!$D$10 -> 0 | C14: ='BI Organisatie'!$C$2 -> BI Organisatie | D14: BI Expertise | E14: Ad hoc data analyse | F14: ='BI Expertise'!L11 -> 50 | G14: ='BI Expertise'!R11 -> 0 | H14: 0
A15: =Algemeen!$D$7 -> 0 | B15: =Algemeen!$D$10 -> 0 | C15: ='BI Data-IT'!$C$2 -> BI Data-IT | D15: ='BI Data-IT'!$C$5 -> BI data | E15: ='BI Data-IT'!C6 -> Hoe wordt data voor BI gebruik ontsloten? | F15: ='BI Data-IT'!L6 -> 60 | G15: ='BI Data-IT'!R6 -> 0 | H15: 0
A16: =Algemeen!$D$7 -> 0 | B16: =Algemeen!$D$10 -> 0 | C16: ='BI Data-IT'!$C$2 -> BI Data-IT | D16: ='BI Data-IT'!$C$5 -> BI data | E16: ='BI Data-IT'!C7 -> Hoeveel historie is in de BI data beschikbaar? | F16: ='BI Data-IT'!L7 -> 25 | G16: ='BI Data-IT'!R7 -> 0 | H16: 0
A17: =Algemeen!$D$7 -> 0 | B17: =Algemeen!$D$10 -> 0 | C17: ='BI Data-IT'!$C$2 -> BI Data-IT | D17: ='BI Data-IT'!$C$5 -> BI data | E17: ='BI Data-IT'!C8 -> Hoe vaak wordt de BI data bijgewerkt? | F17: ='BI Data-IT'!L8 -> 25 | G17: ='BI Data-IT'!R8 -> 0 | H17: 0
A18: =Algemeen!$D$7 -> 0 | B18: =Algemeen!$D$10 -> 0 | C18: ='BI Data-IT'!$C$2 -> BI Data-IT | D18: ='BI Data-IT'!$C$5 -> BI data | E18: ='BI Data-IT'!C9 -> Wat is het detailniveau van de BI data? | F18: ='BI Data-IT'!L9 -> 25 | G18: ='BI Data-IT'!R9 -> 0 | H18: 0
A19: =Algemeen!$D$7 -> 0 | B19: =Algemeen!$D$10 -> 0 | C19: ='BI Data-IT'!$C$2 -> BI Data-IT | D19: ='BI Data-IT'!$C$11 -> BI data bronnen | E19: ='BI Data-IT'!C12 -> Uit hoeveel bedrijfsbronnen is data beschikbaar? | F19: ='BI Data-IT'!L12 -> 25 | G19: ='BI Data-IT'!R12 -> 0 | H19: 0
A20: =Algemeen!$D$7 -> 0 | B20: =Algemeen!$D$10 -> 0 | C20: ='BI Data-IT'!$C$2 -> BI Data-IT | D20: ='BI Data-IT'!$C$11 -> BI data bronnen | E20: ='BI Data-IT'!C13 -> Hoe wordt data uit externe databronnen ontsloten? | F20: ='BI Data-IT'!L13 -> 25 | G20: ='BI Data-IT'!R13 -> 0 | H20: 0
A21: =Algemeen!$D$7 -> 0 | B21: =Algemeen!$D$10 -> 0 | C21: ='BI Data-IT'!$C$2 -> BI Data-IT | D21: ='BI Data-IT'!$C$11 -> BI data bronnen | E21: ='BI Data-IT'!C14 -> Hoe snel kan een verzoek, om gecombineerde data uit meerdere basis systemen te leveren, worden gerealiseerd? | F21: ='BI Data-IT'!L14 -> 30 | G21: ='BI Data-IT'!R14 -> 0 | H21: 0
A22: =Algemeen!$D$7 -> 0 | B22: =Algemeen!$D$10 -> 0 | C22: ='BI Data-IT'!$C$2 -> BI Data-IT | D22: ='BI Data-IT'!$C$16 -> BI data Beheer | E22: ='BI Data-IT'!C17 -> Hoe vaak zijn er incidenten in de verwerking? | F22: ='BI Data-IT'!L17 -> 20 | G22: ='BI Data-IT'!R17 -> 0 | H22: 0
A23: =Algemeen!$D$7 -> 0 | B23: =Algemeen!$D$10 -> 0 | C23: ='BI Data-IT'!$C$2 -> BI Data-IT | D23: ='BI Data-IT'!$C$16 -> BI data Beheer | E23: ='BI Data-IT'!C18 -> Hoe snel kunnen wijzigingen in de datastromen verwerkt worden? | F23: ='BI Data-IT'!L18 -> 20 | G23: ='BI Data-IT'!R18 -> 0 | H23: 0
A24: =Algemeen!$D$7 -> 0 | B24: =Algemeen!$D$10 -> 0 | C24: ='BI Data-IT'!$C$2 -> BI Data-IT | D24: ='BI Data-IT'!$C$16 -> BI data Beheer | E24: ='BI Data-IT'!C19 -> Hoe snel kunnen BI analyse resultaten in de praktijk worden toegepast (bv. bij klantcontacten)? | F24: ='BI Data-IT'!L19 -> 30 | G24: ='BI Data-IT'!R19 -> 0 | H24: 0
A25: =Algemeen!$D$7 -> 0 | B25: =Algemeen!$D$10 -> 0 | C25: ='BI Data-IT'!$C$2 -> BI Data-IT | D25: ='BI Data-IT'!$C$16 -> BI data Beheer | E25: ='BI Data-IT'!C20 -> Voldoet de huidige informatievoorziening? | F25: ='BI Data-IT'!L20 -> 25 | G25: ='BI Data-IT'!R20 -> 0 | H25: 0
A26: =Algemeen!$D$7 -> 0 | B26: =Algemeen!$D$10 -> 0 | C26: ='BI Data-IT'!$C$2 -> BI Data-IT | D26: ='BI Data Governance'!$C$5 -> Data Governance implementatie | E26: ='BI Data Governance'!C6 -> Data Governance (algemeen) | F26: ='BI Data Governance'!L6 -> 20 | G26: ='BI Data Governance'!R6 -> 0 | H26: 0
A27: =Algemeen!$D$7 -> 0 | B27: =Algemeen!$D$10 -> 0 | C27: ='BI Data-IT'!$C$2 -> BI Data-IT | D27: ='BI Data Governance'!$C$5 -> Data Governance implementatie | E27: ='BI Data Governance'!C7 -> Data architectuur | F27: ='BI Data Governance'!L7 -> 15 | G27: ='BI Data Governance'!R7 -> 0 | H27: 0
A28: =Algemeen!$D$7 -> 0 | B28: =Algemeen!$D$10 -> 0 | C28: ='BI Data-IT'!$C$2 -> BI Data-IT | D28: ='BI Data Governance'!$C$5 -> Data Governance implementatie | E28: ='BI Data Governance'!C8 -> Meta Data Beheer | F28: ='BI Data Governance'!L8 -> 20 | G28: ='BI Data Governance'!R8 -> 0 | H28: 0
A29: =Algemeen!$D$7 -> 0 | B29: =Algemeen!$D$10 -> 0 | C29: ='BI Data-IT'!$C$2 -> BI Data-IT | D29: ='BI Data Governance'!$C$5 -> Data Governance implementatie | E29: ='BI Data Governance'!C9 -> Data Quality | F29: ='BI Data Governance'!L9 -> 20 | G29: ='BI Data Governance'!R9 -> 0 | H29: 0
A30: =Algemeen!$D$7 -> 0 | B30: =Algemeen!$D$10 -> 0 | C30: ='BI Data-IT'!$C$2 -> BI Data-IT | D30: ='BI Data Governance'!$C$5 -> Data Governance implementatie | E30: ='BI Data Governance'!C10 -> Data opslag en Operationeel Beheer | F30: ='BI Data Governance'!L10 -> 10 | G30: ='BI Data Governance'!R10 -> 0 | H30: 0
A31: =Algemeen!$D$7 -> 0 | B31: =Algemeen!$D$10 -> 0 | C31: ='BI Data-IT'!$C$2 -> BI Data-IT | D31: ='BI Data Governance'!$C$5 -> Data Governance implementatie | E31: ='BI Data Governance'!C11 -> Data Beveiliging | F31: ='BI Data Governance'!L11 -> 25 | G31: ='BI Data Governance'!R11 -> 0 | H31: 0
A32: =Algemeen!$D$7 -> 0 | B32: =Algemeen!$D$10 -> 0 | C32: ='BI Data-IT'!$C$2 -> BI Data-IT | D32: ='BI Data Governance'!$C$5 -> Data Governance implementatie | E32: ='BI Data Governance'!C12 -> Data gebruik ethiek | F32: ='BI Data Governance'!L12 -> 25 | G32: ='BI Data Governance'!R12 -> 0 | H32: 0
A33: =Algemeen!$D$7 -> 0 | B33: =Algemeen!$D$10 -> 0 | C33: ='BI Data-IT'!$C$2 -> BI Data-IT | D33: ='BI Data Governance'!$C$5 -> Data Governance implementatie | E33: ='BI Data Governance'!C13 -> Master Data Management | F33: ='BI Data Governance'!L13 -> 15 | G33: ='BI Data Governance'!R13 -> 0 | H33: 0
A34: =Algemeen!$D$7 -> 0 | B34: =Algemeen!$D$10 -> 0 | C34: ='BI Data-IT'!$C$2 -> BI Data-IT | D34: ='BI Data Governance'!$C$5 -> Data Governance implementatie | E34: ='BI Data Governance'!C14 -> BI Data modeleren en ontwerp | F34: ='BI Data Governance'!L14 -> 15 | G34: ='BI Data Governance'!R14 -> 0 | H34: =$G$9 -> 0
A35: =Algemeen!$D$7 -> 0 | B35: =Algemeen!$D$10 -> 0 | C35: ='BI Data-IT'!$C$2 -> BI Data-IT | D35: ='BI Data Governance'!$C$5 -> Data Governance implementatie | E35: ='BI Data Governance'!C15 -> Data Warehouse & BI | F35: ='BI Data Governance'!L15 -> 10 | G35: ='BI Data Governance'!R15 -> 0 | H35: 0
A36: =Algemeen!$D$7 -> 0 | B36: =Algemeen!$D$10 -> 0 | C36: ='BI Data-IT'!$C$2 -> BI Data-IT | D36: ='BI Data Governance'!$C$5 -> Data Governance implementatie | E36: ='BI Data Governance'!C16 -> Document & Content Management | F36: ='BI Data Governance'!L16 -> 15 | G36: ='BI Data Governance'!R16 -> 0 | H36: 0
A37: =Algemeen!$D$7 -> 0 | B37: =Algemeen!$D$10 -> 0 | C37: ='BI Gebruik'!$C$2 -> BI Gebruik | D37: ='BI Gebruik'!$C$5 -> Hoe wordt BI data in uw organisatie gebruikt? | E37: ='BI Gebruik'!C6 -> Hoe kunnen eindgebruikers informatie uit gecombineerde bronnen benaderen? | F37: ='BI Gebruik'!L6 -> 10 | G37: ='BI Gebruik'!R6 -> 0 | H37: 0
A38: =Algemeen!$D$7 -> 0 | B38: =Algemeen!$D$10 -> 0 | C38: ='BI Gebruik'!$C$2 -> BI Gebruik | D38: ='BI Gebruik'!$C$5 -> Hoe wordt BI data in uw organisatie gebruikt? | E38: ='BI Gebruik'!C7 -> Rapporteert de organisatie over BI KPI's? | F38: ='BI Gebruik'!L7 -> 20 | G38: ='BI Gebruik'!R7 -> 0 | H38: 0
A39: =Algemeen!$D$7 -> 0 | B39: =Algemeen!$D$10 -> 0 | C39: ='BI Gebruik'!$C$2 -> BI Gebruik | D39: ='BI Gebruik'!$C$5 -> Hoe wordt BI data in uw organisatie gebruikt? | E39: ='BI Gebruik'!C8 -> Hoe wordt BI data gezien? | F39: ='BI Gebruik'!L8 -> 20 | G39: ='BI Gebruik'!R8 -> 0 | H39: 0
A40: =Algemeen!$D$7 -> 0 | B40: =Algemeen!$D$10 -> 0 | C40: ='BI Gebruik'!$C$2 -> BI Gebruik | D40: ='BI Gebruik'!$C$5 -> Hoe wordt BI data in uw organisatie gebruikt? | E40: ='BI Gebruik'!C9 -> Wat wordt er met BI analyse resultaten gedaan? | F40: ='BI Gebruik'!L9 -> 20 | G40: ='BI Gebruik'!R9 -> 0 | H40: 0
A41: =Algemeen!$D$7 -> 0 | B41: =Algemeen!$D$10 -> 0 | C41: ='BI Gebruik'!$C$2 -> BI Gebruik | D41: ='BI Resultaten'!$C$5 -> Voor welke doeleinden wordt BI ingezet | E41: ='BI Resultaten'!C6 -> Verantwoordings rapportages | F41: ='BI Resultaten'!L6 -> 20 | G41: ='BI Resultaten'!R6 -> 0 | H41: 0
A42: =Algemeen!$D$7 -> 0 | B42: =Algemeen!$D$10 -> 0 | C42: ='BI Gebruik'!$C$2 -> BI Gebruik | D42: ='BI Resultaten'!$C$5 -> Voor welke doeleinden wordt BI ingezet | E42: ='BI Resultaten'!C7 -> Verbeteren besluitvorming | F42: ='BI Resultaten'!L7 -> 20 | G42: ='BI Resultaten'!R7 -> 0 | H42: 0
A43: =Algemeen!$D$7 -> 0 | B43: =Algemeen!$D$10 -> 0 | C43: ='BI Gebruik'!$C$2 -> BI Gebruik | D43: ='BI Resultaten'!$C$5 -> Voor welke doeleinden wordt BI ingezet | E43: ='BI Resultaten'!C8 -> Verhogen inkomsten/omzet | F43: ='BI Resultaten'!L8 -> 20 | G43: ='BI Resultaten'!R8 -> 0 | H43: 0
A44: =Algemeen!$D$7 -> 0 | B44: =Algemeen!$D$10 -> 0 | C44: ='BI Gebruik'!$C$2 -> BI Gebruik | D44: ='BI Resultaten'!$C$5 -> Voor welke doeleinden wordt BI ingezet | E44: ='BI Resultaten'!C9 -> Verhogen klanttevredenheid | F44: ='BI Resultaten'!L9 -> 20 | G44: ='BI Resultaten'!R9 -> 0 | H44: 0
A45: =Algemeen!$D$7 -> 0 | B45: =Algemeen!$D$10 -> 0 | C45: ='BI Gebruik'!$C$2 -> BI Gebruik | D45: ='BI Resultaten'!$C$5 -> Voor welke doeleinden wordt BI ingezet | E45: ='BI Resultaten'!C10 -> Voldoen aan regelgeving | F45: ='BI Resultaten'!L10 -> 20 | G45: ='BI Resultaten'!R10 -> 0 | H45: 0
A46: =Algemeen!$D$7 -> 0 | B46: =Algemeen!$D$10 -> 0 | C46: ='BI Gebruik'!$C$2 -> BI Gebruik | D46: ='BI Resultaten'!$C$5 -> Voor welke doeleinden wordt BI ingezet | E46: ='BI Resultaten'!C11 -> Kostenverlaging door proces optimalisatie/automatisering | F46: ='BI Resultaten'!L11 -> 20 | G46: ='BI Resultaten'!R11 -> 0 | H46: 0
A47: =Algemeen!$D$7 -> 0 | B47: =Algemeen!$D$10 -> 0 | C47: ='BI Gebruik'!$C$2 -> BI Gebruik | D47: ='BI Resultaten'!$C$5 -> Voor welke doeleinden wordt BI ingezet | E47: ='BI Resultaten'!C12 -> Verbeteren Risk Management / Internal Audit | F47: ='BI Resultaten'!L12 -> 20 | G47: ='BI Resultaten'!R12 -> 0 | H47: 0
A48: =Algemeen!$D$7 -> 0 | B48: =Algemeen!$D$10 -> 0 | C48: ='BI Gebruik'!$C$2 -> BI Gebruik | D48: ='BI Resultaten'!$C$14 -> Welke BI technieken worden toegepast | E48: ='BI Resultaten'!C15 -> Reporting en Data visualisatie | F48: ='BI Resultaten'!L15 -> 30 | G48: ='BI Resultaten'!R15 -> 0 | H48: 0
A49: =Algemeen!$D$7 -> 0 | B49: =Algemeen!$D$10 -> 0 | C49: ='BI Gebruik'!$C$2 -> BI Gebruik | D49: ='BI Resultaten'!$C$14 -> Welke BI technieken worden toegepast | E49: ='BI Resultaten'!C16 -> Intelligent Automation | F49: ='BI Resultaten'!L16 -> 30 | G49: ='BI Resultaten'!R16 -> 0 | H49: 0
A50: =Algemeen!$D$7 -> 0 | B50: =Algemeen!$D$10 -> 0 | C50: ='BI Gebruik'!$C$2 -> BI Gebruik | D50: ='BI Resultaten'!$C$14 -> Welke BI technieken worden toegepast | E50: ='BI Resultaten'!C17 -> Artificial Intelligence / Machine Learning | F50: ='BI Resultaten'!L17 -> 40 | G50: ='BI Resultaten'!R17 -> 0 | H50: 0
A51: =Algemeen!$D$7 -> 0 | B51: =Algemeen!$D$10 -> 0 | C51: ='BI Gebruik'!$C$2 -> BI Gebruik | D51: ='BI Resultaten'!$C$14 -> Welke BI technieken worden toegepast | E51: ='BI Resultaten'!C18 -> Virtuele agents of gesproken interfaces | F51: ='BI Resultaten'!L18 -> 30 | G51: ='BI Resultaten'!R18 -> 0 | H51: 0
A52: =Algemeen!$D$7 -> 0 | B52: =Algemeen!$D$10 -> 0 | C52: ='BI Gebruik'!$C$2 -> BI Gebruik | D52: ='BI Resultaten'!$C$14 -> Welke BI technieken worden toegepast | E52: ='BI Resultaten'!C19 -> Natuurlijke taal en/of spraak herkenning | F52: ='BI Resultaten'!L19 -> 30 | G52: ='BI Resultaten'!R19 -> 0 | H52: 0
A53: =Algemeen!$D$7 -> 0 | B53: =Algemeen!$D$10 -> 0 | C53: ='BI Gebruik'!$C$2 -> BI Gebruik | D53: Impact | E53: ='BI Resultaten'!C22 -> Hele bedrijf | F53: ='BI Resultaten'!L22 -> 20 | G53: ='BI Resultaten'!R22 -> 0 | H53: 0
A54: =Algemeen!$D$7 -> 0 | B54: =Algemeen!$D$10 -> 0 | C54: ='BI Gebruik'!$C$2 -> BI Gebruik | D54: Impact | E54: ='BI Resultaten'!C23 -> HR | F54: ='BI Resultaten'!L23 -> 10 | G54: ='BI Resultaten'!R23 -> 0 | H54: 0
A55: =Algemeen!$D$7 -> 0 | B55: =Algemeen!$D$10 -> 0 | C55: ='BI Gebruik'!$C$2 -> BI Gebruik | D55: Impact | E55: ='BI Resultaten'!C24 -> IT/ Techniek | F55: ='BI Resultaten'!L24 -> 20 | G55: ='BI Resultaten'!R24 -> 0 | H55: 0
A56: =Algemeen!$D$7 -> 0 | B56: =Algemeen!$D$10 -> 0 | C56: ='BI Gebruik'!$C$2 -> BI Gebruik | D56: Impact | E56: ='BI Resultaten'!C25 -> Marketing, Sales en Relatiebeheer | F56: ='BI Resultaten'!L25 -> 20 | G56: ='BI Resultaten'!R25 -> 0 | H56: 0
A57: =Algemeen!$D$7 -> 0 | B57: =Algemeen!$D$10 -> 0 | C57: ='BI Gebruik'!$C$2 -> BI Gebruik | D57: Impact | E57: ='BI Resultaten'!C26 -> Risk en interne auditing | F57: ='BI Resultaten'!L26 -> 10 | G57: ='BI Resultaten'!R26 -> 0 | H57: 0
A58: =Algemeen!$D$7 -> 0 | B58: =Algemeen!$D$10 -> 0 | C58: ='BI Gebruik'!$C$2 -> BI Gebruik | D58: Impact | E58: ='BI Resultaten'!C27 -> Finance | F58: ='BI Resultaten'!L27 -> 20 | G58: ='BI Resultaten'!R27 -> 0 | H58: 0
A59: =Algemeen!$D$7 -> 0 | B59: =Algemeen!$D$10 -> 0 | C59: ='BI Gebruik'!$C$2 -> BI Gebruik | D59: Impact | E59: ='BI Resultaten'!C28 -> Inkoop, Productie en Procesverbetering | F59: ='BI Resultaten'!L28 -> 30 | G59: ='BI Resultaten'!R28 -> 0 | H59: 0

Sheet Grafisch (hidden)
C1: Rijlabels | D1: Som van ambitie | E1: Som van gewogen score
C2: BI Data-IT | D2: 0 | E2: 0
C3: BI data | D3: 0 | E3: 0
C4: Hoe wordt data voor BI gebruik ontsloten? | D4: 0 | E4: 0
C5: Hoeveel historie is in de BI data beschikbaar? | D5: 0 | E5: 0
C6: Hoe vaak wordt de BI data bijgewerkt? | D6: 0 | E6: 0
C7: Wat is het detailniveau van de BI data? | D7: 0 | E7: 0
C8: BI data Beheer | D8: 0 | E8: 0
C9: Hoe vaak zijn er incidenten in de verwerking? | D9: 0 | E9: 0
C10: Hoe snel kunnen wijzigingen in de datastromen verwerkt worden? | D10: 0 | E10: 0
C11: Hoe snel kunnen BI analyse resultaten in de praktijk worden toegepast (bv. bij klantcontacten)? | D11: 0 | E11: 0
C12: Voldoet de huidige informatievoorziening? | D12: 0 | E12: 0
C13: BI data bronnen | D13: 0 | E13: 0
C14: Uit hoeveel bedrijfsbronnen is data beschikbaar? | D14: 0 | E14: 0
C15: Hoe wordt data uit externe databronnen ontsloten? | D15: 0 | E15: 0
C16: Hoe snel kan een verzoek, om gecombineerde data uit meerdere basis systemen te leveren, worden gerealiseerd? | D16: 0 | E16: 0
C17: Data Governance implementatie | D17: 0 | E17: 0
C18: Data architectuur | D18: 0 | E18: 0
C19: Data Beveiliging | D19: 0 | E19: 0
C20: Data Governance (algemeen) | D20: 0 | E20: 0
C21: Data Quality | D21: 0 | E21: 0
C22: Document & Content Management | D22: 0 | E22: 0
C23: Master Data Management | D23: 0 | E23: 0
C24: Meta Data Beheer | D24: 0 | E24: 0
C25: Data opslag en Operationeel Beheer | D25: 0 | E25: 0
C26: Data gebruik ethiek | D26: 0 | E26: 0
C27: BI Data modeleren en ontwerp | D27: 0 | E27: 0
C28: Data Warehouse & BI | D28: 0 | E28: 0
C29: BI Gebruik | D29: 0 | E29: 0
C30: Hoe wordt BI data in uw organisatie gebruikt? | D30: 0 | E30: 0
C31: Rapporteert de organisatie over BI KPI's? | D31: 0 | E31: 0
C32: Hoe kunnen eindgebruikers informatie uit gecombineerde bronnen benaderen? | D32: 0 | E32: 0
C33: Hoe wordt BI data gezien? | D33: 0 | E33: 0
C34: Wat wordt er met BI analyse resultaten gedaan? | D34: 0 | E34: 0
C35: Impact | D35: 0 | E35: 0
C36: Finance | D36: 0 | E36: 0
C37: Hele bedrijf | D37: 0 | E37: 0
C38: HR | D38: 0 | E38: 0
C39: Inkoop, Productie en Procesverbetering | D39: 0 | E39: 0
C40: IT/ Techniek | D40: 0 | E40: 0
C41: Marketing, Sales en Relatiebeheer | D41: 0 | E41: 0
C42: Risk en interne auditing | D42: 0 | E42: 0
C43: Voor welke doeleinden wordt BI ingezet | D43: 0 | E43: 0
C44: Kostenverlaging door proces optimalisatie/automatisering | D44: 0 | E44: 0
C45: Verantwoordings rapportages | D45: 0 | E45: 0
C46: Verbeteren besluitvorming | D46: 0 | E46: 0
C47: Verbeteren Risk Management / Internal Audit | D47: 0 | E47: 0
C48: Verhogen inkomsten/omzet | D48: 0 | E48: 0
C49: Verhogen klanttevredenheid | D49: 0 | E49: 0
C50: Voldoen aan regelgeving | D50: 0 | E50: 0
C51: Welke BI technieken worden toegepast | D51: 0 | E51: 0
C52: Artificial Intelligence / Machine Learning | D52: 0 | E52: 0
C53: Natuurlijke taal en/of spraak herkenning | D53: 0 | E53: 0
C54: Reporting en Data visualisatie | D54: 0 | E54: 0
C55: Virtuele agents of gesproken interfaces | D55: 0 | E55: 0
C56: Intelligent Automation | D56: 0 | E56: 0
C57: BI Organisatie | D57: 0 | E57: 0
C58: BI Expertise | D58: 0 | E58: 0
C59: Ad hoc data analyse | D59: 0 | E59: 0
C60: BI Data integratie en ontsluiting | D60: 0 | E60: 0
C61: Combinatie BI en Bedrijfsproces kennis | D61: 0 | E61: 0
C62: Data Science | D62: 0 | E62: 0
C63: Rapportage en visualisatie | D63: 0 | E63: 0
C64: BI Visie | D64: 0 | E64: 0
C65: Hoe worden BI ideeën opgepakt? | D65: 0 | E65: 0
C66: Hoe worden BI activiteiten geinitieerd? | D66: 0 | E66: 0
C67: Wat is geldig voor de BI visie? | D67: 0 | E67: 0
C68: Organisatie | D68: 0 | E68: 0
C69: Wat is het niveau van BI kennis en cultuur? | D69: 0 | E69: 0
C70: Wie is eindverantwoordelijk voor BI? | D70: 0 | E70: 0
C71: Wie maken er gebruik van BI data? | D71: 0 | E71: 0
C72: Hoe zijn BI werkzaamheden georganiseerd? | D72: 0 | E72: 0
C73: Ambitie | D73: 0
C74: Ambitie | D74: 0
C75: Wat is uw ambitie over 1-2 jaar | D75: 0
C76: (leeg)
C77: (leeg)
C78: (leeg)
C79: Eindtotaal | D79: 0 | E79: 0

Sheet Antwoorden (hidden)
A1: Data vragen
A2: Hoe wordt data voor BI gebruik ontsloten | C2: Hoeveel historie is in de BI data beschikbaar | E2: Hoe vaak wordt de BI data bijgewerkt | G2: Wat is het detailniveau van de BI data | I2: Uit hoeveel bedrijfsbronnen is data beschikbaar | K2: Hoe wordt data uit externe databronnen ontsloten | M2: Hoe snel kan een verzoek, om gecombineerde data uit meerdere basis systemen te leveren, worden gerealiseerd? | O2: Hoe vaak zijn er incidenten in de verwerking | Q2: Hoe snel kunnen wijzigingen in de datastromen verwerkt worden | S2: Voldoet de huidige informatievoorziening | U2: Hoe snel kunnen BI analyse resultaten in de praktijk worden toegepast (bv. bij klantcontacten)
A4: Data wordt niet ontsloten | B4: 1 | C4: Geen | D4: 1 | E4: Real time | F4: 5 | G4: Geen BI data | H4: 1 | I4: 0-10% | J4: 1 | K4: We gebruiken geen externe data | L4: 1 | M4: <1 dag | N4: 5 | O4: (Bijna) nooit | P4: 5 | Q4: 1 dag | R4: 5 | S4: 0-10% van de vragen | T4: 1 | U4: We passen geen BI resultaten toe | V4: 1
A5: Op ad hoc basis | B5: 1.25 | C5: Minstens 1 maand | D5: 2 | E5: Minstens iedere 4 uur | F5: 4 | G5: Enkele kenmerken geaggregeerd | H5: 1.5 | I5: 10-25% | J5: 2 | K5: Externe data wordt op ad hoc basis gebruikt | L5: 3 | M5: 1 dag | N5: 4 | O5: Enkele keren per jaar kleine incidenten | P5: 4 | Q5: < 1 week | R5: 4 | S5: 10-25% van de vragen | T5: 2 | U5: Na de analyse wordt gekeken hoe dit geïmplementeerd kan worden | V5: 2
A6: Direct uit de bron naar een bestand/rapportage | B6: 1.5 | C6: Minstens 1 jaar | D6: 3 | E6: Minstens iedere dag | F6: 3 | G6: Enkele kenmerken in detail | H6: 2 | I6: 25-40% | J6: 3 | K6: Externe data wordt actief gezocht en aangekocht | L6: 4 | M6: 1 week | N6: 3 | O6: Enkele keren per jaar grote incidenten | P6: 3 | Q6: < 2 weken | R6: 3 | S6: 25-40% van de vragen | T6: 3 | U6: Tijdens de analyse wordt nagedacht hoe resultaten in de praktijk toegepast kunnen worden | V6: 3
A7: Direct uit meerdere bronnen naar meerdere rapportages | B7: 2 | C7: Minstens 5 jaar | D7: 4.5 | E7: Minstens iedere week | F7: 2 | G7: (Bijna) alle kenmerken geaggregeerd en deel in detail | H7: 3 | I7: 40-70% | J7: 4 | K7: Externe data wordt actief gebruikt | L7: 5 | M7: 2 weken | N7: 2.5 | O7: Enkele keren per maand kleine incidenten | P7: 2 | Q7: < 1 maand | R7: 2 | S7: 40-70% van de vragen | T7: 4 | U7: Analyse resultaten worden op een standaard manier bruikbaar gemaakt voor praktijk toepassing | V7: 4
A8: Via een lokaal DWH | B8: 3 | C8: Volledige historie | D8: 5 | E8: Minstens iedere maand | F8: 1.5 | G8: Alle kenmerken op laagste detailniveau | H8: 5 | I8: 70-100% | J8: 5 | K8: Onbekend | L8: 1 | M8: 1 maand | N8: 2 | O8: Wekelijks kleine en grote incidenten | P8: 1 | Q8: langer | R8: 1 | S8: 80-100% van de vragen | T8: 5 | U8: Analyse resultaten kunnen dezelfde dag in de praktijk worden toegepast | V8: 5
A9: Via een enterprise DWH of meerdere lokale DWH's | B9: 4 | E9: Op ad hoc basis | F9: 1 | M9: meer | N9: 1
A10: Via een combinatie DWH en data lake | B10: 5
A13: BI Toepassing vragen
A14: Hoe kunnen eindgebruikers informatie uit gecombineerde bronnen benaderen | C14: Rapporteert de organisatie over BI KPI's? | E14: Hoe wordt BI data gezien | G14: Wat wordt er met analyse resultaten gedaan
A16: Niet | B16: 1 | C16: Ja, door het hele bedrijf gecommuniceerd | D16: 5 | E16: Geen BI data | F16: 1 | G16: We doen geen analyses | H16: 1
A17: Ad hoc via IT | B17: 2 | C17: Ja, binnen het BI team gebruikt | D17: 4 | E17: Noodzakelijke kostenpost | F17: 2 | G17: Analyses worden niet altijd afgerond | H17: 2
A18: Via standaard rapportages | B18: 3 | C18: Nee | D18: 1 | E18: Zinvol om op te sturen | F18: 3 | G18: Analyses worden altijd afgerond en geimplementeerd; niet succesvolle projecten worden daar op afgerekend | H18: 3
A19: Via standaard rapportages en analyse data | B19: 4 | C19: Enkele KPI's voor het BI team | D19: 3 | E19: Mogelijkheid tot kostenbesparing of verhoging inkomsten | F19: 4 | G19: Analyse resultaten worden zo mogelijk geïmplementeerd; het onderzoek wordt geevalueerd | H19: 4
A20: Met Self service BI | B20: 5 | C20: Onbekend | D20: 1 | E20: Strategisch asset van het bedrijf | F20: 5 | G20: Resultaten worden gebruikt; het onderzoek wordt geevalueerd; leerpunten zijn input voor nieuwe experimenten | H20: 5
A22: BI in de organisatie vragen
A23: Hoe worden BI activiteiten geinitieerd? | C23: Hoe worden BI ideeën opgepakt? | E23: Wie is eindverantwoordelijk voor BI? | G23: Wie maken er gebruik van BI data? | I23: Hoe zijn BI werkzaamheden georganiseerd? | K23: Wat is het niveau van BI kennis en cultuur? | M23: Wat is uw ambitie over 1-2 jaar
A25: Er zijn geen BI activiteiten | B25: 1 | C25: Niet | D25: 1 | E25: Niemand | F25: 1 | G25: Niemand | H25: 1 | I25: Volledig decentraal: onafhankelijke BI professionals verspreid in de organisatie | J25: 2 | K25: BI wordt niet gebruikt bij besluitvorming | L25: 1 | M25: Geen ambitie | N25: 1
A26: Er worden ad hoc BI initiatieven ontplooid | B26: 2 | C26: Ad hoc | D26: 2 | E26: BI professional | F26: 2 | G26: Enkele eindgebruikers soms | H26: 2 | I26: Vooral decentraal: samenwerkende BI professionals verspreid in de organisatie | J26: 3 | K26: BI inzichten worden beperkt gebruikt bij besluitvorming en niet volledig vertrouwd | L26: 2 | M26: Rapporteren over data | N26: 2
A27: Er zijn mensen actief op zoek naar mogelijke BI toepassingen | B27: 3 | C27: Er wordt een project opgezet | D27: 3 | E27: VP Analytics | F27: 5 | G27: Enkele eindgebruikers vaak | H27: 3 | I27: Volledig gecentraliseerd: BI professionals in een centrale BI afdeling voor het hele bedrijf | J27: 4 | K27: Mensen worden aangemoedigd BI inzichten te gebruiken bij besluitvorming | L27: 3 | M27: Sturen in het bedrijf op data | N27: 3
A28: Er is een project om BI ideeën te genereren | B28: 4 | C28: Er is een proces om nieuwe BI ideeën uit te werken | D28: 4 | E28: Marketing | F28: 4 | G28: Enkele eindgebruikers en een professional | H28: 4 | I28: Combinatie (Hub & Spoke model): BI aanpak centraal ontwikkeld; analyse decentraal uitgevoerd | J28: 5 | K28: We hebben een grote groep mensen die zelf data analyseren en besluiten obv BI inzichten | L28: 4 | M28: Resultaten verbeteren bv met voorspellende modellen of Machine Learning | N28: 4
A29: Er is een regelmatig bijgewerkt visie document | B29: 5 | C29: Er is een proces om nieuwe BI projecten uit te werken, te implementeren en te evalueren | D29: 5 | E29: Finance | F29: 4 | G29: Een groep full time BI professionals | H29: 5 | I29: BI wordt in groepen (squads) uitgevoerd; BI professionals stemmen af (bv via chapters en guilds) | J29: 5 | K29: BI wordt bedrijfsbreed en op alle niveaus gebruikt als input voor vernieuwing en enige basis voor besluitvorming | L29: 5 | M29: Bedrijfs innovatie obv analyse en AI inzichten | N29: 5
E30: Operations | F30: 4 | I30: Onbekend/geen BI professionals | J30: 1 | K30: Onbekend | L30: 1
E31: IT | F31: 3
E32: CEO | F32: 5
E33: Directeur generaal | F33: 5
E34: Anders | F34: 3
A36: Algemeen
A37: Omzet | C37: FTE | E37: Branches
A39: < €10 miljoen | C39: < 50 | E39: Consumer Goods
A40: < €50 miljoen | C40: 50-500 | E40: Energie, Mijnbouw & Chemicaliën
A41: < €100 miljoen | C41: 500-2500 | E41: Financial services
A42: < €500 miljoen | C42: 2500-10000 | E42: Gezondheidszorg
A43: >=€500 miljoen | C43: >10000 | E43: Life Sciences
A44: Onbekend/Vertrouwelijk | C44: Onbekend/Vertrouwelijk | E44: Overheid/NGO
E45: Productie / Automotive
E46: Professional & Business Services
E47: Retail
E48: Technologie
E49: Telecommunicatie
E50: Vastgoed & Bouw
E51: Vervoer en Vrije tijd
E52: Onbekend/Vertrouwelijk
A57: volwassenheidsniveau | B57: range start | C57: volwassenheidsniveau naam | D57: verschil ist-ambitie | E57: omschrijving ambitie
A59: 1 | B59: 0 | C59: noemen we niveau Basis | D59: -20 | E59: weinig ambitieus te noemen is. Neem eens de tijd om na te denken welke mogelijkheden er zijn
B60: 1.35 | C60: is op weg naar niveau Rapportage | D60: 0.4 | E60: realistisch is. Bepaal welke aspecten het meeste aandacht nodig hebben. Succes met uw plannen
A61: 2 | B61: 1.75 | C61: zit rond niveau Rapportage | D61: 1 | E61: een grote stap en daarmee ambitieus te noemen is. Defineer haalbare stappen en bepaal of er extra aandacht nodig is voor de aspecten waar iets lager op wordt gescoord
B62: 2.25 | C62: is tussen niveau Rapportage en Sturen | D62: 1.5 | E62: een zeer grote stap die we daarom betitelen als onrealistisch. Stel haalbare doelen op en pas uw ambitieniveau voor de korte termijn aan
A63: 3 | B63: 2.75 | C63: zit rond niveau Sturen
B64: 3.25 | C64: is tussen Sturen en Analyseren
A65: 4 | B65: 3.75 | C65: zit rond niveau Analyseren
B66: 4.25 | C66: is tussen niveau Analyseren en Voorspellen
A67: 5 | B67: 4.75 | C67: komt bij niveau Voorspellen

Sheet Toelichting Werkwijze (hidden)
A1: Bij de vragen kan een score van 1-5 punten werden behaald.
A2: Deze score wordt gewogen
A3: Pas als alle kenmerken gevuld zijn kan naar een volgende pagina worden gebladerd
A4: terugbladeren kan altijd
A5: Als een vraag nog beantwoord moet worden is de tekst rood
A7: Per aspect wordt de totaalscore over alle vragen gedeeld door de weging
A8: Dit levert een score op tussen 1 en 5 die de volwassenheid op dat aspect representeert
A9: Op dezelfde manier wordt een gewogen totale score berekend.
A11: Op basis van het verschil tussen de totale score en de ambitie wordt een advies gegeven
A12: Daarnaast wordt gekeken naar het verschil in de score op verschillende gebieden.
A13: Als dat meer dan eenbepaalde waarde is wordt er een extra signaal gegeven daar aandacht aan te besteden
